fUSD/lending_fUSD_20250209
["ID","MTS","AMOUNT","RATE_DAILY","PERIOD"]
[352453224,1739115043755,-500.0,0.00010862,2]
[352453225,1739115043765,-500.0,0.00010862,2]
[352453226,1739115043775,-500.0,0.00010862,2]
[352453227,1739115043784,-500.0,0.00010862,2]
[352453228,1739115043794,-500.0,0.00010862,2]
[352453229,1739115043804,-500.0,0.00010862,2]
[352453230,1739115043814,-500.0,0.00010862,2]
[352453231,1739115043823,-500.0,0.00010862,2]
[352453232,1739115043833,-500.0,0.00010862,2]
[352453233,1739115043842,-500.0,0.00010862,2]
[352453234,1739115043852,-500.0,0.00010862,2]
[352453235,1739115043862,-500.0,0.00010862,2]
[352453236,1739115043872,-500.0,0.00010862,2]
[352453237,1739115043881,-500.0,0.00010862,2]
[352453238,1739115043891,-500.0,0.00010862,2]
[352453239,1739115043900,-500.0,0.00010862,2]
[352453240,1739115043910,-500.0,0.00010862,2]
[352453241,1739115043919,-500.0,0.00010862,2]
[352453242,1739115043930,-500.0,0.00010862,2]
[352453243,1739115043940,-183.72655595,0.00010862,2]
[352453244,1739115043950,-500.0,0.00010862,2]
[352453245,1739115043959,-500.0,0.00010862,2]
[352453246,1739115043969,-500.0,0.00010862,2]
[352453247,1739115043978,-500.0,0.00010862,2]
[352453248,1739115043988,-500.0,0.00010862,2]
[352453249,1739115043998,-500.0,0.00010862,2]
[352453250,1739115044007,-500.0,0.00010862,2]
[352453251,1739115044017,-500.0,0.00010862,2]
[352453252,1739115044026,-500.0,0.00010862,2]
[352453253,1739115044035,-500.0,0.00010862,2]
[352453254,1739115044045,-500.0,0.00010862,2]
[352453255,1739115044055,-500.0,0.00010862,2]
[352453256,1739115044064,-500.0,0.00010862,2]
[352453257,1739115044073,-1000.0,0.00010862,2]
[352453258,1739115044082,-500.0,0.00010862,2]
[352453259,1739115044091,-500.0,0.00010862,2]
[352453260,1739115044101,-500.0,0.00010862,2]
[352453261,1739115044110,-500.0,0.00010862,2]
[352453262,1739115044120,-500.0,0.00010862,2]
[352453263,1739115044130,-500.0,0.00010862,2]
[352453264,1739115044139,-500.0,0.00010862,2]
[352453265,1739115044149,-500.0,0.00010862,2]
[352453266,1739115044159,-500.0,0.00010862,2]
[352453267,1739115044168,-500.0,0.00010862,2]
[352453268,1739115044178,-500.0,0.00010862,2]
[352453269,1739115044187,-500.0,0.00010862,2]
[352453270,1739115044196,-500.0,0.00010862,2]
[352453271,1739115044206,-500.0,0.00010862,2]
[352453272,1739115044216,-241.1091517,0.00010862,2]
[352453273,1739115044225,-430.49,0.00010862,2]
[352453274,1739115044234,-500.0,0.00010862,2]
[352453275,1739115044243,-500.0,0.00010862,2]
[352453276,1739115044252,-500.0,0.00010862,2]
[352453277,1739115044262,-500.0,0.00010862,2]
[352453278,1739115044272,-500.0,0.00010862,2]
[352453279,1739115044281,-500.0,0.00010862,2]
[352453280,1739115044291,-500.0,0.00010862,2]
[352453281,1739115044301,-500.0,0.00010862,2]
[352453282,1739115044310,-500.0,0.00010862,2]
[352453283,1739115044320,-501.94083038,0.00010862,2]
[352453284,1739115044331,-502.46614023,0.00010862,2]
[352453285,1739115044502,-500.0,0.00010862,2]
[352453286,1739115044513,-501.93362595,0.00010862,2]
[352453287,1739115044522,-500.0,0.00010862,2]
[352453288,1739115044532,-505.28237853,0.00010862,2]
[352453289,1739115044541,-500.0,0.00010862,2]
[352453290,1739115044551,-500.0,0.00010862,2]
[352453291,1739115044560,-500.0,0.00010862,2]
[352453292,1739115044570,-542.99125585,0.00010862,2]
[352453293,1739115044580,-500.0,0.00010862,2]
[352453294,1739115044589,-503.65487538,0.00010862,2]
[352453295,1739115044598,-500.0,0.00010862,2]
[352453296,1739115044607,-500.0,0.00010862,2]
[352453297,1739115044616,-502.11463402,0.00010862,2]
[352453298,1739115044625,-500.0,0.00010862,2]
[352453299,1739115044636,-500.0,0.00010862,2]
[352453300,1739115044645,-504.2910943,0.00010862,2]
[352453301,1739115044654,-500.0,0.00010862,2]
[352453302,1739115044664,-501.96610122,0.00010862,2]
[352453303,1739115044677,-500.0,0.00010862,2]
[352453304,1739115044686,-500.0,0.00010862,2]
[352453305,1739115044695,-500.0,0.00010862,2]
[352453306,1739115044706,-500.0,0.00010862,2]
[352453307,1739115044715,-500.0,0.00010862,2]
[352453308,1739115044726,-500.0,0.00010862,2]
[352453309,1739115044735,-500.0,0.00010862,2]
[352453310,1739115044745,-500.0,0.00010863,2]
[352453311,1739115044754,-543.8,0.00010863,2]
[352453312,1739115044764,-500.0,0.00010863,2]
[352453313,1739115044773,-500.0,0.00010863,2]
[352453314,1739115044783,-500.0,0.00010863,2]
[352453315,1739115044792,-500.0,0.00010863,2]
[352453316,1739115044802,-585.4464411,0.00010863,2]
[352453317,1739115044821,-500.0,0.00010863,2]
[352453318,1739115044830,-545.56,0.00010863,2]
[352453319,1739115044840,-500.0,0.00010863,2]
[352453320,1739115044849,-638.0,0.00010872,2]
[352453321,1739115044859,-569.0,0.00010872,2]
[352453322,1739115044868,-1827.0,0.00010872,2]
[352453323,1739115044877,-150.0,0.00010874,2]
[352453324,1739115044886,-264.95,0.00010876,2]
[352453325,1739115044895,-985.45,0.00010877,2]
[352453326,1739115044905,-985.45,0.00010877,2]
[352453327,1739115044914,-985.45,0.00010877,2]
[352453328,1739115044924,-154.42,0.0001088,2]
[352453329,1739115044934,-368.23,0.0001089,2]
[352453330,1739115044944,-313.03926009,0.00010899,2]
[352453331,1739115044953,-156.39864357,0.000109,2]
[352453332,1739115044963,-7205.55,0.00010999,2]
[352453333,1739115044972,-500.0,0.00010999,2]
[352453334,1739115044981,-500.0,0.00010999,2]
[352453335,1739115044990,-500.0,0.00010999,2]
[352453336,1739115045000,-281.73738459,0.00010999,2]
[352453337,1739115045010,-159.12162769,0.00010999,2]
[352453338,1739115045027,-500.0,0.00010999,2]
[352453339,1739115045036,-500.0,0.00010999,2]
[352453340,1739115045046,-500.0,0.00010999,2]
[352453341,1739115045056,-500.0,0.00010999,2]
[352453342,1739115045066,-500.0,0.00010999,2]
[352453343,1739115045075,-500.0,0.00010999,2]
[352453344,1739115045086,-500.0,0.00010999,2]
[352453345,1739115045095,-500.0,0.00010999,2]
[352453346,1739115045105,-500.0,0.00010999,2]
[352453347,1739115045114,-500.0,0.00010999,2]
[352453348,1739115045123,-645.39,0.00010999,2]
[352453349,1739115045141,-500.0,0.00010999,2]
[352453350,1739115045152,-500.0,0.00010999,2]
[352453351,1739115045162,-500.0,0.00010999,2]
[352453352,1739115045172,-500.0,0.00010999,2]
[352453353,1739115045183,-500.0,0.00010999,2]
[352453354,1739115045192,-500.0,0.00010999,2]
[352453355,1739115045203,-500.0,0.00010999,2]
[352453356,1739115045213,-500.0,0.00010999,2]
[352453357,1739115045223,-3456.19,0.00010999,2]
[352453358,1739115045234,-548.02895895,0.00010999,2]
[352453359,1739115045243,-500.0,0.00010999,2]
[352453360,1739115045253,-500.0,0.00010999,2]
[352453361,1739115045263,-500.0,0.00010999,2]
[352453362,1739115045273,-500.0,0.00010999,2]
[352453363,1739115045282,-500.0,0.00010999,2]
[352453364,1739115045292,-500.0,0.00010999,2]
[352453365,1739115045302,-500.0,0.00010999,2]
[352453366,1739115045311,-500.0,0.00010999,2]
[352453367,1739115045320,-500.0,0.00010999,2]
[352453368,1739115045330,-217.98295732,0.00010999,2]
[352453369,1739115045339,-500.0,0.00010999,2]
[352453370,1739115045348,-249.4,0.00010999,2]
[352453371,1739115045358,-500.0,0.00010999,2]
[352453372,1739115045368,-500.0,0.00010999,2]
[352453373,1739115045378,-500.0,0.00010999,2]
[352453374,1739115045387,-500.0,0.00010999,2]
[352453375,1739115045397,-500.0,0.00010999,2]
[352453376,1739115045407,-500.0,0.00010999,2]
[352453377,1739115045417,-500.0,0.00010999,2]
[352453378,1739115045427,-500.0,0.00010999,2]
[352453379,1739115045437,-500.0,0.00010999,2]
[352453380,1739115045446,-500.0,0.00010999,2]
[352453381,1739115045456,-500.0,0.00010999,2]
[352453382,1739115045466,-500.0,0.00010999,2]
[352453383,1739115045476,-500.0,0.00010999,2]
[352453384,1739115045486,-500.0,0.00010999,2]
[352453385,1739115045495,-500.0,0.00010999,2]
[352453386,1739115045505,-500.0,0.00010999,2]
[352453387,1739115045515,-500.0,0.00010999,2]
[352453388,1739115045524,-500.0,0.00010999,2]
[352453389,1739115045534,-500.0,0.00010999,2]
[352453390,1739115045543,-500.0,0.00010999,2]
[352453391,1739115045552,-500.0,0.00010999,2]
[352453392,1739115045568,-500.0,0.00010999,2]
[352453393,1739115045577,-500.0,0.00010999,2]
[352453394,1739115045586,-500.0,0.00010999,2]
[352453395,1739115045595,-500.0,0.00010999,2]
[352453396,1739115045605,-500.0,0.00010999,2]
[352453397,1739115045615,-500.0,0.00010999,2]
[352453398,1739115045624,-592.38,0.00010999,2]
[352453399,1739115045634,-500.0,0.00010999,2]
[352453400,1739115045643,-500.0,0.00010999,2]
[352453401,1739115045652,-500.0,0.00010999,2]
[352453402,1739115045662,-500.0,0.00010999,2]
[352453403,1739115045673,-500.0,0.00010999,2]
[352453404,1739115045684,-221.78076026,0.00011,2]
[352453405,1739115045694,-543.8,0.00011,2]
[352453406,1739115045704,-500.0,0.00011,2]
[352453407,1739115045714,-500.0,0.00011,2]
[352453408,1739115045724,-500.0,0.00011,2]
[352453409,1739115045733,-500.0,0.00011,2]
[352453410,1739115045742,-500.0,0.00011,2]
[352453411,1739115045753,-545.56,0.00011,2]
[352453412,1739115045763,-500.0,0.00011,2]
[352453413,1739115045772,-189.85,0.0001103,2]
[352453414,1739115045782,-3908.0,0.00011065,2]
[352453415,1739115045792,-150.0,0.00011065,2]
[352453416,1739115045801,-206.74515524,0.00011099,2]
[352453417,1739115045811,-206.74515519,0.00011099,2]
[352453418,1739115045820,-206.74515519,0.00011099,2]
[352453419,1739115045830,-206.74515519,0.00011099,2]
[352453420,1739115045839,-206.74515519,0.00011099,2]
[352453421,1739115045848,-720.7494645,0.00011099,2]
[352453422,1739115045857,-720.74946442,0.00011099,2]
[352453423,1739115045867,-720.74946442,0.00011099,2]
[352453424,1739115045876,-720.74946442,0.00011099,2]
[352453425,1739115045886,-720.74946442,0.00011099,2]
[352453426,1739115045896,-1736.85153071,0.00011108,2]
[352453427,1739115045906,-7205.55,0.00011136,2]
[352453428,1739115045915,-500.0,0.00011136,2]
[352453429,1739115045925,-500.0,0.00011136,2]
[352453430,1739115045936,-500.0,0.00011136,2]
[352453431,1739115045946,-500.0,0.00011136,2]
[352453432,1739115045956,-500.0,0.00011136,2]
[352453433,1739115045966,-500.0,0.00011136,2]
[352453434,1739115045976,-500.0,0.00011136,2]
[352453435,1739115045985,-191.44,0.00011136,2]
[352453436,1739115045995,-500.0,0.00011136,2]
[352453437,1739115046005,-608.82625164,0.00011136,2]
[352453438,1739115046014,-533.41614292,0.00011136,2]
[352453439,1739115046024,-3456.19,0.00011136,2]
[352453440,1739115046033,-500.0,0.00011136,2]
[352453441,1739115046045,-500.0,0.00011136,2]
[352453442,1739115046055,-500.0,0.00011136,2]
[352453443,1739115046064,-576.93534703,0.00011136,2]
[352453444,1739115046074,-500.0,0.00011136,2]
[352453445,1739115046083,-500.0,0.00011136,2]
[352453446,1739115046093,-500.0,0.00011136,2]
[352453447,1739115046102,-500.0,0.00011136,2]
[352453448,1739115046112,-500.0,0.00011136,2]
[352453449,1739115046122,-414.36694324,0.00011136,2]
[352453450,1739115046132,-500.0,0.00011136,2]
[352453451,1739115046141,-500.0,0.00011136,2]
[352453452,1739115046150,-500.0,0.00011136,2]
[352453453,1739115046160,-500.0,0.00011136,2]
[352453454,1739115046170,-500.0,0.00011136,2]
[352453455,1739115046180,-500.0,0.00011136,2]
[352453456,1739115046189,-500.0,0.00011136,2]
[352453457,1739115046199,-500.0,0.00011136,2]
[352453458,1739115046209,-500.0,0.00011136,2]
[352453459,1739115046218,-500.0,0.00011136,2]
[352453460,1739115046227,-500.0,0.00011136,2]
[352453461,1739115046236,-500.0,0.00011136,2]
[352453462,1739115046246,-381.09854803,0.00011136,2]
[352453463,1739115046255,-500.0,0.00011136,2]
[352453464,1739115046265,-517.91,0.00011136,2]
[352453465,1739115046274,-572.66,0.00011136,2]
[352453466,1739115046284,-500.0,0.00011136,2]
[352453467,1739115046293,-500.0,0.00011136,2]
[352453468,1739115046302,-500.0,0.00011136,2]
[352453469,1739115046312,-500.0,0.00011136,2]
[352453470,1739115046321,-531.23,0.00011136,2]
[352453471,1739115046331,-500.0,0.00011136,2]
[352453472,1739115046340,-500.0,0.00011136,2]
[352453473,1739115046349,-500.0,0.00011136,2]
[352453474,1739115046358,-500.0,0.00011136,2]
[352453475,1739115046367,-464.88964287,0.00011136,2]
[352453476,1739115046413,-500.0,0.00010314,2]
[352453477,1739115046423,-465.04243919,0.00010314,2]
[352453478,1739115046433,-35.11035713,0.00011136,2]
[352453479,1739115046442,-590.51,0.00011136,2]
[352453480,1739115046452,-178.98895768,0.00011137,2]
[352453481,1739115046463,-364.81104232,0.00011137,2]
[352453482,1739115046473,-500.0,0.00011137,2]
[352453483,1739115046483,-84.51807683,0.00011137,2]
[352453484,1739115046494,-415.48192317,0.00011137,2]
[352453485,1739115046504,-130.11037655,0.00011137,2]
[352453486,1739115046605,-553.66,0.00010314,2]
[352453487,1739115046614,-500.0,0.00010314,2]
[352453488,1739115046623,-440.69,0.00010862,2]
[352453489,1739115046634,-59.31,0.00010862,2]
[352453490,1739115046644,-542.96,0.00010999,2]
[352453491,1739115046654,-369.88962345,0.00011137,2]
[352453492,1739115046663,-500.0,0.00011137,2]
[352453493,1739115046676,-500.0,0.00011137,2]
[352453494,1739115046684,-545.56,0.00011137,2]
[352453495,1739115046692,-500.0,0.00011137,2]
[352453496,1739115046701,-720.74946442,0.00011143,2]
[352453497,1739115046710,-500.0,0.00011146,2]
[352453498,1739115046719,-150.0,0.00011152,2]
[352453499,1739115046728,-431.7357272,0.00011206,2]
[352453500,1739115046736,-1000.0,0.00011227,2]
[352453501,1739115046746,-206.74515519,0.00011265,2]
[352453502,1739115046756,-7205.55,0.00011273,2]
[352453503,1739115046765,-262.81,0.00011273,2]
[352453504,1739115046774,-500.0,0.00011273,2]
[352453505,1739115046783,-199.0680006,0.00011273,2]
[352453506,1739115046792,-500.0,0.00011273,2]
[352453507,1739115046801,-500.0,0.00011273,2]
[352453508,1739115046810,-500.0,0.00011273,2]
[352453509,1739115046819,-500.0,0.00011273,2]
[352453510,1739115046829,-3456.19,0.00011273,2]
[352453511,1739115046838,-582.4668752,0.00011273,2]
[352453512,1739115046847,-500.0,0.00011273,2]
[352453513,1739115046856,-548.91512361,0.00011273,2]
[352453514,1739115046866,-500.0,0.00011273,2]
[352453515,1739115046875,-500.0,0.00011273,2]
[352453516,1739115046884,-229.6174764,0.00011273,2]
[352453517,1739115046894,-500.0,0.00011273,2]
[352453518,1739115046903,-481.44,0.00011273,2]
[352453519,1739115046912,-543.8,0.00011274,2]
[352453520,1739115046921,-500.0,0.00011274,2]
[352453521,1739115046932,-246.4931866,0.00011274,2]
[352453522,1739115046941,-500.0,0.00011274,2]
[352453523,1739115046951,-500.0,0.00011274,2]
[352453524,1739115046960,-500.0,0.00011274,2]
[352453525,1739115046970,-545.56,0.00011274,2]
[352453526,1739115046979,-648.46060345,0.00011274,2]
[352453527,1739115046988,-732.22584127,0.00011279,2]
[352453528,1739115046998,-720.74946442,0.00011356,2]
[352453529,1739115047009,-153.0,0.00011377,2]
[352453530,1739115047019,-153.0,0.00011377,2]
[352453531,1739115047028,-153.0,0.00011377,2]
[352453532,1739115047037,-153.0,0.00011377,2]
[352453533,1739115047046,-153.0,0.00011377,2]
[352453534,1739115047055,-153.0,0.00011377,2]
[352453535,1739115047064,-153.0,0.00011377,2]
[352453536,1739115047073,-153.0,0.00011377,2]
[352453537,1739115047082,-153.0,0.00011377,2]
[352453538,1739115047091,-153.0,0.00011377,2]
[352453539,1739115047101,-153.0,0.00011377,2]
[352453540,1739115047111,-153.0,0.00011377,2]
[352453541,1739115047121,-153.0,0.00011377,2]
[352453542,1739115047130,-153.0,0.00011377,2]
[352453543,1739115047139,-153.0,0.00011397,2]
[352453544,1739115047149,-153.0,0.00011397,2]
[352453545,1739115047159,-153.0,0.00011397,2]
[352453546,1739115047168,-153.0,0.00011397,2]
[352453547,1739115047178,-153.0,0.00011397,2]
[352453548,1739115047191,-7205.55,0.0001141,2]
[352453549,1739115047202,-500.0,0.0001141,2]
[352453550,1739115047212,-183.57980557,0.0001141,2]
[352453551,1739115047222,-500.0,0.0001141,2]
[352453552,1739115047232,-500.0,0.0001141,2]
[352453553,1739115047242,-500.0,0.0001141,2]
[352453554,1739115047251,-3456.19,0.0001141,2]
[352453555,1739115047261,-153.71782706,0.0001141,2]
[352453556,1739115047271,-500.0,0.0001141,2]
[352453557,1739115047280,-500.0,0.0001141,2]
[352453558,1739115047290,-500.0,0.0001141,2]
[352453559,1739115047300,-543.8,0.00011411,2]
[352453560,1739115047309,-500.0,0.00011411,2]
[352453561,1739115047319,-500.0,0.00011411,2]
[352453562,1739115047328,-166.51567092,0.00011411,2]
[352453563,1739115047337,-500.0,0.00011411,2]
[352453564,1739115047346,-545.56,0.00011411,2]
[352453565,1739115047355,-377.29,0.00011438,2]
[352453566,1739115047364,-431.7357272,0.00011445,2]
[352453567,1739115047373,-206.74515519,0.00011447,2]
[352453568,1739115047382,-2751.0,0.00011507,2]
[352453569,1739115047391,-7205.55,0.00011547,2]
[352453570,1739115047400,-500.0,0.00011547,2]
[352453571,1739115047410,-500.0,0.00011547,2]
[352453572,1739115047420,-291.00041056,0.00011547,2]
[352453573,1739115047429,-500.0,0.00011547,2]
[352453574,1739115047439,-3456.19,0.00011547,2]
[352453575,1739115047450,-492.1,0.00011547,2]
[352453576,1739115047460,-500.0,0.00011547,2]
[352453577,1739115047470,-500.0,0.00011547,2]
[352453578,1739115047481,-543.8,0.00011548,2]
[352453579,1739115047493,-500.0,0.00011548,2]
[352453580,1739115047503,-500.0,0.00011548,2]
[352453581,1739115047514,-500.0,0.00011548,2]
[352453582,1739115047526,-545.56,0.00011548,2]
[352453583,1739115047536,-720.74946442,0.00011568,2]
[352453584,1739115047548,-206.74515519,0.00011629,2]
[352453585,1739115047558,-7205.55,0.00011684,2]
[352453586,1739115047568,-500.0,0.00011684,2]
[352453587,1739115047578,-447.11633972,0.00011684,2]
[352453588,1739115047588,-500.0,0.00011684,2]
[352453589,1739115047597,-3456.19,0.00011684,2]
[352453590,1739115047607,-500.0,0.00011684,2]
[352453591,1739115047616,-159.6671878,0.00011684,2]
[352453592,1739115047625,-543.8,0.00011685,2]
[352453593,1739115047635,-500.0,0.00011685,2]
[352453594,1739115047644,-500.0,0.00011685,2]
[352453595,1739115047654,-500.0,0.00011685,2]
[352453596,1739115047666,-545.56,0.00011685,2]
[352453597,1739115047681,-720.74946442,0.00011781,2]
[352453598,1739115047692,-313.03926009,0.00011787,2]
[352453599,1739115047702,-206.74515519,0.00011812,2]
[352453600,1739115047713,-7205.55,0.00011821,2]
[352453601,1739115047723,-500.0,0.00011821,2]
[352453602,1739115047733,-500.0,0.00011821,2]
[352453603,1739115047743,-3456.19,0.00011821,2]
[352453604,1739115047755,-500.0,0.00011821,2]
[352453605,1739115047766,-543.8,0.00011822,2]
[352453606,1739115047776,-500.0,0.00011822,2]
[352453607,1739115047785,-500.0,0.00011822,2]
[352453608,1739115047795,-500.0,0.00011822,2]
[352453609,1739115047805,-545.56,0.00011822,2]
[352453610,1739115047816,-7205.55,0.00011958,2]
[352453611,1739115047826,-280.57476503,0.00011958,2]
[352453612,1739115047837,-500.0,0.00011958,2]
[352453613,1739115047848,-3456.19,0.00011958,2]
[352453614,1739115047858,-500.0,0.00011958,2]
[352453615,1739115047868,-543.8,0.00011959,2]
[352453616,1739115047879,-500.0,0.00011959,2]
[352453617,1739115047889,-500.0,0.00011959,2]
[352453618,1739115047899,-500.0,0.00011959,2]
[352453619,1739115047910,-545.56,0.00011959,2]
[352453620,1739115047920,-206.74515519,0.00011994,2]
[352453621,1739115047930,-198.8696302,0.00011994,2]
[352453622,1739115047940,-196.69349625,0.00011994,2]
[352453623,1739115047951,-720.74946442,0.00011994,2]
[352453624,1739115047962,-402.14209088,0.00012,3]
[352453625,1739115047976,-4827.86045042,0.00012,3]
[352453626,1739115047989,-927.00525606,0.00012,3]
[352453627,1739115048007,-48869.83145959,0.00012,3]
[352453628,1739115048025,-2529.71682823,0.00012,3]
[352453632,1739115572202,-424.0,8.406e-05,2]
[352453633,1739115589743,-150.0,8.835e-05,2]
[352453634,1739115589768,-9426.0,8.836e-05,2]
[352453635,1739115595981,-10000.0,8.836e-05,2]
[352453636,1739115597235,-9814.0114,8.836e-05,2]
[352453637,1739115597256,-185.9886,8.836e-05,2]
[352453638,1739115601470,-818.6818,8.836e-05,2]
[352453639,1739115601491,-1220.9272,8.836e-05,2]
[352453640,1739115601512,-3960.391,8.836e-05,2]
[352453641,1739115898766,-1486.4417,8.836e-05,2]
[352453642,1739115913200,3212.4088,8.836e-05,2]
[352453643,1739116073861,5301.1495,8.836e-05,2]
[352453644,1739116093680,-823.2791,8.836e-05,2]
[352453645,1739116103423,402.8,8.219e-05,2]
[352453646,1739116120189,10854.8808,8.836e-05,2]
[352453651,1739116133561,-1000.0,8.851e-05,2]
[352453652,1739116133587,-2500.0,8.851e-05,2]
[352453653,1739116137649,6500.0,8.836e-05,2]
[352453654,1739116137678,15766.7925,8.836e-05,2]
[352453660,1739116181523,453.4775,8.699e-05,2]
[352453661,1739116199812,1616.7581,8.699e-05,2]
[352453662,1739116217234,866.9347,8.851e-05,2]
[352453674,1739116232266,-462.6639905,8.973e-05,2]
[352453675,1739116232333,-2879.96086824,8.973e-05,2]
[352453676,1739116232345,-1657.37514126,8.973e-05,2]
[352453677,1739116232354,-2000.0,9.776e-05,2]
[352453678,1739116232364,-183.72,9.788e-05,2]
[352453679,1739116232374,-225.96,9.809e-05,2]
[352453680,1739116232383,-150.0,9.863e-05,2]
[352453681,1739116232393,-1000.0,9.873e-05,2]
[352453682,1739116232403,-300.0,9.879e-05,2]
[352453683,1739116232412,-6535.57,9.88e-05,2]
[352453684,1739116232422,-200.54,9.905e-05,2]
[352453685,1739116232432,-220.27,0.00010137,2]
[352453686,1739116232441,-684.73431645,0.00010313,2]
[352453687,1739116232451,-150.0,0.00010313,2]
[352453688,1739116232460,-377.94,0.00010314,2]
[352453689,1739116232470,-167.3020222,0.00010314,2]
[352453690,1739116232480,-500.0,0.00010314,2]
[352453691,1739116232493,-500.0,0.00010314,2]
[352453692,1739116232503,-500.0,0.00010314,2]
[352453693,1739116232513,-436.44217778,0.00010314,2]
[352453694,1739116232523,-172.29,0.00010314,2]
[352453695,1739116232532,-500.0,0.00010314,2]
[352453696,1739116232543,-625.57191204,0.00010314,2]
[352453697,1739116232552,-500.0,0.00010314,2]
[352453698,1739116232562,-500.0,0.00010314,2]
[352453699,1739116232573,-500.0,0.00010314,2]
[352453700,1739116232582,-500.0,0.00010314,2]
[352453701,1739116232591,-611.65,0.00010314,2]
[352453702,1739116232600,-500.0,0.00010314,2]
[352453703,1739116232610,-500.0,0.00010314,2]
[352453704,1739116232619,-500.0,0.00010314,2]
[352453705,1739116232628,-500.0,0.00010314,2]
[352453706,1739116232637,-500.0,0.00010314,2]
[352453707,1739116232647,-500.0,0.00010314,2]
[352453708,1739116232656,-500.0,0.00010314,2]
[352453709,1739116232665,-505.70034849,0.00010314,2]
[352453710,1739116232674,-501.24127861,0.00010314,2]
[352453711,1739116232684,-507.39225326,0.00010314,2]
[352453712,1739116232693,-500.0,0.00010314,2]
[352453713,1739116232702,-501.03724517,0.00010314,2]
[352453714,1739116232712,-500.0,0.00010314,2]
[352453715,1739116232722,-500.0,0.00010314,2]
[352453716,1739116232731,-523.72,0.00010314,2]
[352453718,1739116232742,-500.0,0.00010314,2]
[352453720,1739116232751,-500.0,0.00010314,2]
[352453722,1739116232760,-500.0,0.00010314,2]
[352453724,1739116232770,-154.0116436,0.00010314,2]
[352453726,1739116232779,-408.31353044,0.00010314,2]
[352453728,1739116232789,-500.0,0.00010314,2]
[352453730,1739116232798,-500.0,0.00010314,2]
[352453732,1739116232807,-500.0,0.00010314,2]
[352453734,1739116232817,-500.0,0.00010314,2]
[352453736,1739116232826,-500.0,0.00010314,2]
[352453738,1739116232836,-500.0,0.00010314,2]
[352453740,1739116232845,-500.0,0.00010314,2]
[352453742,1739116232854,-500.0,0.00010314,2]
[352453744,1739116232864,-500.0,0.00010314,2]
[352453746,1739116232873,-500.0,0.00010314,2]
[352453748,1739116232882,-500.0,0.00010314,2]
[352453750,1739116232893,-500.0,0.00010314,2]
[352453752,1739116232902,-500.0,0.00010314,2]
[352453754,1739116232911,-609.27,0.00010314,2]
[352453756,1739116232921,-500.0,0.00010314,2]
[352453758,1739116232930,-500.0,0.00010314,2]
[352453760,1739116232940,-500.0,0.00010314,2]
[352453762,1739116232950,-500.0,0.00010314,2]
[352453764,1739116232959,-500.0,0.00010314,2]
[352453766,1739116232968,-523.67620465,0.00010314,2]
[352453768,1739116232978,-500.0,0.00010314,2]
[352453770,1739116232987,-504.62944683,0.00010314,2]
[352453772,1739116232997,-500.0,0.00010314,2]
[352453774,1739116233007,-500.0,0.00010314,2]
[352453775,1739116233016,-503.50575909,0.00010314,2]